fUST/lending_fUST_20250707
["ID","MTS","AMOUNT","RATE_DAILY","PERIOD"]
[370134831,1751896256509,-1293.96,0.00021369,2]
[370134832,1751896256519,-460.83,0.00021369,2]
[370134833,1751896256528,-460.0,0.00021369,2]
[370134834,1751896256537,-2786.92,0.00021369,2]
[370134835,1751896256547,-460.0,0.00021369,2]
[370134836,1751896256556,-599.84,0.00021369,2]
[370134837,1751896256567,-460.0,0.00021369,2]
[370134838,1751896256577,-842.71,0.00021369,2]
[370134839,1751896256587,-460.0,0.00021369,2]
[370134840,1751896256596,-1351.67,0.00021369,2]
[370134841,1751896256606,-460.0,0.00021369,2]
[370134842,1751896256615,-907.56,0.00021369,2]
[370134843,1751896256624,-460.0,0.00021369,2]
[370134844,1751896256634,-169.94,0.00021381,2]
[370134845,1751896256643,-200.66988016,0.000214,5]
[370134846,1751896256653,-160.168431,0.00021413,2]
[370134847,1751896256662,-160.168431,0.0002152,2]
[370134848,1751896256672,-22221.37678,0.00021537,2]
[370134849,1751896256682,-460.0,0.00021538,2]
[370134850,1751896256691,-460.0,0.00021538,2]
[370134851,1751896256701,-460.0,0.00021538,2]
[370134852,1751896256711,-460.0,0.00021538,2]
[370134853,1751896256720,-460.0,0.00021538,2]
[370134854,1751896256730,-460.0,0.00021538,2]
[370134855,1751896256739,-151.0,0.00021538,2]
[370134856,1751896256749,-245.44226,0.00021538,2]
[370134857,1751896256759,-185.98435,0.00021538,2]
[370134858,1751896256769,-185.98435,0.00021538,2]
[370134859,1751896256778,-491.839318,0.00021538,2]
[370134860,1751896256788,-491.839318,0.00021538,2]
[370134861,1751896256797,-151.0,0.00021538,2]
[370134862,1751896256807,-213.052617,0.00021538,2]
[370134863,1751896256816,-213.052617,0.00021538,2]
[370134864,1751896256827,-209.251044,0.00021538,2]
[370134865,1751896256836,-209.251044,0.00021538,2]
[370134866,1751896256846,-151.0,0.00021538,2]
[370134867,1751896256856,-500.0,0.00021538,2]
[370134868,1751896256867,-1500.0,0.00021538,2]
[370134869,1751896256877,-500.0,0.00021538,2]
[370134870,1751896256888,-1500.0,0.00021538,2]
[370134871,1751896256898,-500.0,0.00021538,2]
[370134872,1751896256908,-1500.0,0.00021538,2]
[370134873,1751896256917,-1500.0,0.00021538,2]
[370134874,1751896256927,-500.0,0.00021538,2]
[370134875,1751896256938,-500.0,0.00021538,2]
[370134876,1751896256949,-1500.0,0.00021538,2]
[370134877,1751896256958,-207.4,0.00021538,2]
[370134878,1751896256968,-500.0,0.00021538,2]
[370134879,1751896256978,-151.0,0.00021538,2]
[370134880,1751896256987,-1500.0,0.00021538,2]
[370134881,1751896256997,-500.0,0.00021538,2]
[370134882,1751896257006,-151.0,0.00021538,2]
[370134883,1751896257016,-1067.06244273,0.00021538,2]
[370134884,1751896257026,-500.0,0.00021538,2]
[370134885,1751896257036,-151.0,0.00021538,2]
[370134886,1751896257046,-151.0,0.00021538,2]
[370134887,1751896257055,-500.0,0.00021538,2]
[370134888,1751896257064,-151.0,0.00021538,2]
[370134889,1751896257073,-500.0,0.00021538,2]
[370134890,1751896257083,-151.0,0.00021538,2]
[370134891,1751896257092,-151.0,0.00021538,2]
[370134892,1751896257101,-500.0,0.00021538,2]
[370134893,1751896257111,-151.0,0.00021538,2]
[370134894,1751896257120,-151.0,0.00021538,2]
[370134895,1751896257129,-151.0,0.00021538,2]
[370134896,1751896257140,-151.0,0.00021538,2]
[370134897,1751896257149,-151.0,0.00021538,2]
[370134898,1751896257159,-151.0,0.00021538,2]
[370134899,1751896257169,-151.0,0.00021538,2]
[370134900,1751896257180,-151.0,0.00021538,2]
[370134901,1751896257191,-151.0,0.00021538,2]
[370134902,1751896257201,-151.0,0.00021538,2]
[370134903,1751896257210,-151.0,0.00021538,2]
[370134904,1751896257220,-151.0,0.00021538,2]
[370134905,1751896257230,-151.0,0.00021538,2]
[370134906,1751896257241,-151.0,0.00021538,2]
[370134907,1751896257253,-151.0,0.00021538,2]
[370134908,1751896257263,-151.0,0.00021538,2]
[370134909,1751896257273,-151.0,0.00021538,2]
[370134910,1751896257283,-151.0,0.00021538,2]
[370134911,1751896257293,-151.0,0.00021538,2]
[370134912,1751896257304,-151.0,0.00021538,2]
[370134913,1751896257314,-151.0,0.00021538,2]
[370134914,1751896257324,-160.168431,0.00021627,2]
[370134915,1751896257335,-151.0,0.00021643,2]
[370134916,1751896257345,-460.0,0.00021643,2]
[370134917,1751896257354,-151.0,0.00021643,2]
[370134918,1751896257364,-151.0,0.00021643,2]
[370134919,1751896257375,-151.0,0.00021643,2]
[370134920,1751896257385,-151.0,0.00021643,2]
[370134921,1751896257395,-460.0,0.00021643,2]
[370134922,1751896257410,-460.0,0.00021643,2]
[370134923,1751896257420,-460.0,0.00021643,2]
[370134924,1751896257430,-460.0,0.00021643,2]
[370134925,1751896257440,-584.89,0.00021643,2]
[370134926,1751896257450,-460.0,0.00021643,2]
[370134927,1751896257461,-226.535696,0.00021643,2]
[370134928,1751896257472,-1979.21,0.00021643,2]
[370134929,1751896257483,-226.535696,0.00021643,2]
[370134930,1751896257495,-561.22,0.00021643,2]
[370134931,1751896257504,-1335.37,0.00021643,2]
[370134932,1751896257514,-355.73104692,0.00021643,2]
[370134933,1751896257523,-460.0,0.00021643,2]
[370134934,1751896257533,-1743.75,0.00021643,2]
[370134935,1751896257542,-855.97,0.00021643,2]
[370134936,1751896257552,-1218.63,0.00021643,2]
[370134937,1751896257561,-485.64,0.00021643,2]
[370134938,1751896257572,-460.0,0.00021643,2]
[370134939,1751896257582,-460.0,0.00021643,2]
[370134940,1751896257591,-2809.41,0.00021643,2]
[370134941,1751896257601,-460.0,0.00021643,2]
[370134942,1751896257611,-1241.79,0.00021643,2]
[370134943,1751896257621,-460.0,0.00021643,2]
[370134944,1751896257631,-589.1,0.00021643,2]
[370134945,1751896257642,-442.0,0.00021643,2]
[370134946,1751896257654,-460.0,0.00021643,2]
[370134947,1751896257664,-460.0,0.00021643,2]
[370134948,1751896257674,-460.0,0.00021643,2]
[370134949,1751896257684,-170.17,0.00021643,2]
[370134950,1751896257694,-923.12,0.00021643,2]
[370134951,1751896257705,-460.0,0.00021643,2]
[370134952,1751896257716,-460.0,0.00021643,2]
[370134953,1751896257725,-460.0,0.00021643,2]
[370134954,1751896257736,-206.89,0.00021643,2]
[370134955,1751896257747,-460.0,0.00021643,2]
[370134956,1751896257756,-460.0,0.00021643,2]
[370134957,1751896257767,-1046.01,0.00021643,2]
[370134958,1751896257776,-237.04,0.00021643,2]
[370134959,1751896257786,-496.13,0.00021643,2]
[370134960,1751896257795,-1293.96,0.00021643,2]
[370134961,1751896257805,-460.83,0.00021643,2]
[370134962,1751896257814,-460.0,0.00021643,2]
[370134963,1751896257823,-2786.92,0.00021643,2]
[370134964,1751896257833,-460.0,0.00021643,2]
[370134965,1751896257843,-599.84,0.00021643,2]
[370134966,1751896257852,-460.0,0.00021643,2]
[370134967,1751896257862,-842.71,0.00021643,2]
[370134968,1751896257872,-460.0,0.00021643,2]
[370134969,1751896257881,-1351.67,0.00021643,2]
[370134970,1751896257890,-460.0,0.00021643,2]
[370134971,1751896257900,-907.56,0.00021643,2]
[370134972,1751896257909,-460.0,0.00021643,2]
[370134973,1751896257919,-500.0,0.00021645,2]
[370134974,1751896257929,-500.0,0.00021645,2]
[370134975,1751896257938,-500.0,0.00021645,2]
[370134976,1751896257947,-157.9142363,0.00021645,2]
[370134977,1751896257957,-500.0,0.00021645,2]
[370134978,1751896257966,-500.0,0.00021645,2]
[370134979,1751896257976,-500.0,0.00021645,2]
[370134980,1751896257986,-500.0,0.00021645,2]
[370134981,1751896257996,-500.0,0.00021645,2]
[370134982,1751896258006,-500.0,0.00021645,2]
[370134983,1751896258015,-508.31206158,0.00021645,2]
[370134984,1751896258024,-500.0,0.00021645,2]
[370134985,1751896258034,-600.0,0.00021645,2]
[370134986,1751896258043,-500.0,0.00021645,2]
[370134987,1751896258052,-500.46494259,0.00021645,2]
[370134988,1751896258062,-500.0,0.00021645,2]
[370134989,1751896258071,-200.66988016,0.0002165,5]
[370134990,1751896258081,-1500.0,0.00021664,2]
[370134991,1751896258090,-160.168431,0.00021735,2]
[370134992,1751896258099,-151.0,0.00021747,2]
[370134993,1751896258110,-159.634064,0.00021747,2]
[370134994,1751896258120,-159.634064,0.00021747,2]
[370134995,1751896258130,-151.0,0.00021747,2]
[370134996,1751896258139,-152.10626,0.00021747,2]
[370134997,1751896258149,-152.10626,0.00021747,2]
[370134998,1751896258159,-500.0,0.00021747,2]
[370134999,1751896258168,-500.0,0.00021747,2]
[370135000,1751896258177,-460.0,0.00021812,2]
[370135001,1751896258187,-460.0,0.00021812,2]
[370135002,1751896258196,-586.50686755,0.00021812,2]
[370135003,1751896258205,-151.0,0.00021812,2]
[370135004,1751896258215,-151.0,0.00021812,2]
[370135005,1751896258225,-151.0,0.00021812,2]
[370135006,1751896258235,-195.01453,0.00021812,2]
[370135007,1751896258246,-195.01453,0.00021812,2]
[370135008,1751896258256,-332.0,0.00021838,2]
[370135009,1751896258266,-160.168431,0.00021842,2]
[370135010,1751896258275,-332.0,0.0002186,2]
[370135011,1751896258286,-200.66988016,0.000219,6]
[370135012,1751896258295,-460.0,0.00021917,2]
[370135013,1751896258304,-151.0,0.00021917,2]
[370135014,1751896258314,-460.0,0.00021917,2]
[370135015,1751896258324,-470.65,0.00021917,2]
[370135016,1751896258334,-151.0,0.00021917,2]
[370135017,1751896258345,-460.0,0.00021917,2]
[370135018,1751896258354,-460.0,0.00021917,2]
[370135019,1751896258364,-584.89,0.00021917,2]
[370135020,1751896258374,-460.0,0.00021917,2]
[370135021,1751896258383,-1979.21,0.00021917,2]
[370135022,1751896258394,-561.22,0.00021917,2]
[370135023,1751896258408,-185.004279,0.00021917,2]
[370135024,1751896258419,-1335.37,0.00021917,2]
[370135025,1751896258430,-460.0,0.00021917,2]
[370135026,1751896258442,-1743.75,0.00021917,2]
[370135027,1751896258453,-855.97,0.00021917,2]
[370135028,1751896258463,-1218.63,0.00021917,2]
[370135029,1751896258473,-485.64,0.00021917,2]
[370135030,1751896258484,-460.0,0.00021917,2]
[370135031,1751896258494,-2809.41,0.00021917,2]
[370135032,1751896258504,-460.0,0.00021917,2]
[370135033,1751896258513,-1241.79,0.00021917,2]
[370135034,1751896258522,-460.0,0.00021917,2]
[370135035,1751896258531,-589.1,0.00021917,2]
[370135036,1751896258540,-460.0,0.00021917,2]
[370135037,1751896258550,-460.0,0.00021917,2]
[370135038,1751896258561,-460.0,0.00021917,2]
[370135039,1751896258571,-923.12,0.00021917,2]
[370135040,1751896258580,-151.0,0.00021917,2]
[370135041,1751896258590,-460.0,0.00021917,2]
[370135042,1751896258599,-338.8,0.00021917,2]
[370135043,1751896258609,-460.0,0.00021917,2]
[370135044,1751896258619,-460.0,0.00021917,2]
[370135045,1751896258628,-460.0,0.00021917,2]
[370135046,1751896258638,-1046.01,0.00021917,2]
[370135047,1751896258647,-496.13,0.00021917,2]
[370135048,1751896258657,-1293.96,0.00021917,2]
[370135049,1751896258666,-460.83,0.00021917,2]
[370135050,1751896258676,-460.0,0.00021917,2]
[370135051,1751896258685,-2786.92,0.00021917,2]
[370135052,1751896258695,-460.0,0.00021917,2]
[370135053,1751896258705,-599.84,0.00021917,2]
[370135054,1751896258715,-460.0,0.00021917,2]
[370135055,1751896258726,-842.71,0.00021917,2]
[370135056,1751896258736,-460.0,0.00021917,2]
[370135057,1751896258745,-1351.67,0.00021917,2]
[370135058,1751896258755,-460.0,0.00021917,2]
[370135059,1751896258765,-907.56,0.00021917,2]
[370135060,1751896258777,-460.0,0.00021917,2]
[370135061,1751896258793,-151.0,0.00021918,2]
[370135062,1751896258803,-151.0,0.00021918,2]
[370135063,1751896258813,-151.0,0.00021918,2]
[370135064,1751896258823,-151.0,0.00021918,2]
[370135065,1751896258833,-151.0,0.00021918,2]
[370135066,1751896258842,-151.0,0.00021918,2]
[370135067,1751896258851,-151.0,0.00021918,2]
[370135068,1751896258861,-200.0,0.00021918,2]
[370135069,1751896258870,-500.0,0.00021918,2]
[370135070,1751896258880,-216.95488276,0.00021918,2]
[370135071,1751896258890,-500.0,0.00021918,2]
[370135072,1751896258899,-500.0,0.00021918,2]
[370135073,1751896258912,-500.0,0.00021918,2]
[370135074,1751896258923,-160.168431,0.00021949,2]
[370135075,1751896258932,-169.0,0.00022,2]
[370135076,1751896258942,-160.168431,0.00022057,2]
[370135077,1751896258953,-460.0,0.00022086,2]
[370135078,1751896258963,-460.0,0.00022086,2]
[370135079,1751896258972,-6072.89691687,0.00022126,2]
[370135080,1751896258981,-150.0,0.00022135,30]
[370135081,1751896258991,-200.66988016,0.0002215,6]
[370135082,1751896259000,-160.168431,0.00022164,2]
[370135083,1751896259010,-332.0,0.00022167,2]
[370135084,1751896259020,-12669.49864974,0.00022191,2]
[370135085,1751896259029,-32046.32099833,0.00022191,2]
[370135086,1751896259038,-151.0,0.00022191,7]
[370135087,1751896259048,-151.0,0.00022191,7]
[370135088,1751896259057,-151.0,0.00022191,7]
[370135089,1751896259066,-166.914918,0.00022191,7]
[370135090,1751896259076,-151.0,0.00022191,7]
[370135091,1751896259085,-151.0,0.00022191,7]
[370135092,1751896259094,-151.0,0.00022191,7]
[370135093,1751896259103,-151.0,0.00022191,7]
[370135094,1751896259113,-460.0,0.00022191,2]
[370135095,1751896259123,-185.98435,0.00022191,7]
[370135096,1751896259132,-185.98435,0.00022191,7]
[370135097,1751896259141,-491.839318,0.00022191,2]
[370135098,1751896259150,-491.839318,0.00022191,2]
[370135099,1751896259159,-460.0,0.00022191,2]
[370135100,1751896259169,-151.0,0.00022191,7]
[370135101,1751896259178,-460.0,0.00022191,2]
[370135102,1751896259188,-460.0,0.00022191,2]
[370135103,1751896259197,-584.89,0.00022191,2]
[370135104,1751896259207,-194.36,0.00022191,2]
[370135105,1751896259216,-1979.21,0.00022191,2]
[370135106,1751896259225,-561.22,0.00022191,2]
[370135107,1751896259235,-1335.37,0.00022191,2]
[370135108,1751896259245,-460.0,0.00022191,2]
[370135109,1751896259255,-1743.75,0.00022191,2]
[370135110,1751896259264,-855.97,0.00022191,2]
[370135111,1751896259273,-1218.63,0.00022191,2]
[370135112,1751896259283,-213.052617,0.00022191,7]
[370135113,1751896259292,-485.64,0.00022191,2]
[370135114,1751896259301,-213.052617,0.00022191,7]
[370135115,1751896259311,-460.0,0.00022191,2]
[370135116,1751896259321,-2809.41,0.00022191,2]
[370135117,1751896259332,-460.0,0.00022191,2]
[370135118,1751896259342,-1241.79,0.00022191,2]
[370135119,1751896259351,-460.0,0.00022191,2]
[370135120,1751896259361,-589.1,0.00022191,2]
[370135121,1751896259371,-209.251044,0.00022191,7]
[370135122,1751896259380,-209.251044,0.00022191,7]
[370135123,1751896259389,-151.0,0.00022191,7]
[370135124,1751896259402,-460.0,0.00022191,2]
[370135125,1751896259413,-460.0,0.00022191,2]
[370135126,1751896259423,-460.0,0.00022191,2]
[370135127,1751896259433,-923.12,0.00022191,2]
[370135128,1751896259442,-460.0,0.00022191,2]
[370135129,1751896259454,-460.0,0.00022191,2]
[370135130,1751896259464,-460.0,0.00022191,2]
[370135131,1751896259474,-493.66,0.00022191,2]
[370135132,1751896259484,-1046.01,0.00022191,2]
[370135133,1751896259495,-496.13,0.00022191,2]
[370135134,1751896259505,-1293.96,0.00022191,2]
[370135135,1751896259515,-460.83,0.00022191,2]
[370135136,1751896259527,-460.0,0.00022191,2]
[370135137,1751896259538,-2786.92,0.00022191,2]
[370135138,1751896259547,-460.0,0.00022191,2]
[370135139,1751896259556,-599.84,0.00022191,2]
[370135140,1751896259568,-460.0,0.00022191,2]
[370135141,1751896259577,-842.71,0.00022191,2]
[370135142,1751896259587,-460.0,0.00022191,2]
[370135143,1751896259599,-1351.67,0.00022191,2]
[370135144,1751896259608,-460.0,0.00022191,2]
[370135145,1751896259740,-907.56,0.00022191,2]
[370135146,1751896259751,-460.0,0.00022191,2]
[370135147,1751896259760,-1000.0,0.00022193,2]
[370135148,1751896259770,-188.6631262,0.00022193,2]
[370135149,1751896259780,-277.42294643,0.00022193,2]
[370135150,1751896259793,-1000.0,0.00022193,2]
[370135151,1751896259804,-1000.0,0.00022193,2]
[370135152,1751896259815,-1000.0,0.00022193,2]
[370135153,1751896259826,-1000.0,0.00022193,2]
[370135154,1751896259835,-222.04728116,0.00022193,2]
[370135155,1751896259845,-1200.0,0.00022193,2]
[370135156,1751896259855,-1000.0,0.00022193,2]
[370135157,1751896259865,-1112.39333012,0.00022193,2]
[370135158,1751896259875,-1564.47,0.000222,7]
[370135159,1751896259885,-332.0,0.00022245,2]
[370135160,1751896259894,-160.168431,0.00022271,2]
[370135161,1751896259904,-428.5386218,0.00022274,2]
[370135162,1751896259914,-428.5386218,0.00022274,2]
[370135163,1751896259924,-428.5386218,0.00022274,2]
[370135164,1751896259935,-428.5386218,0.00022274,2]
[370135165,1751896259944,-428.5386218,0.00022274,2]
[370135166,1751896259954,-428.5386218,0.00022274,2]
[370135167,1751896259966,-428.5386218,0.00022274,2]
[370135168,1751896259975,-428.5386218,0.00022274,2]
[370135169,1751896259985,-428.5386218,0.00022274,2]
[370135170,1751896259995,-428.5386218,0.00022274,2]
[370135171,1751896260004,-428.5386218,0.00022274,2]
[370135172,1751896260015,-428.5386218,0.00022274,2]
[370135173,1751896260025,-1000.0,0.00022295,2]
[370135174,1751896260035,-1000.0,0.00022295,2]
[370135175,1751896260045,-332.0,0.00022335,2]
[370135176,1751896260055,-254.91,0.00022353,2]
[370135177,1751896260066,-151.0,0.0002236,7]
[370135178,1751896260076,-159.634064,0.0002236,7]
[370135179,1751896260087,-159.634064,0.0002236,7]
[370135180,1751896260096,-151.0,0.0002236,7]
[370135181,1751896260106,-151.0,0.00022367,7]
[370135182,1751896260116,-151.0,0.00022367,3]
[370135183,1751896260126,-151.0,0.00022367,3]
[370135184,1751896260136,-226.535696,0.00022367,7]
[370135185,1751896260147,-226.535696,0.00022367,7]
[370135186,1751896260157,-160.168431,0.00022379,2]
[370135187,1751896260166,-200.66988016,0.000224,7]
[370135188,1751896260176,-932.0,0.00022412,2]
[370135189,1751896260185,-460.0,0.00022465,2]
[370135190,1751896260195,-460.0,0.00022465,2]
[370135191,1751896260205,-460.0,0.00022465,2]
[370135192,1751896260216,-460.0,0.00022465,2]
[370135193,1751896260226,-584.89,0.00022465,2]
[370135194,1751896260236,-1979.21,0.00022465,2]
[370135195,1751896260245,-561.22,0.00022465,2]
[370135196,1751896260255,-1335.37,0.00022465,2]
[370135197,1751896260265,-460.0,0.00022465,2]
[370135198,1751896260275,-855.97,0.00022465,2]
[370135199,1751896260284,-1743.75,0.00022465,2]
[370135200,1751896260294,-1218.63,0.00022465,2]
[370135201,1751896260304,-485.64,0.00022465,2]
[370135202,1751896260314,-460.0,0.00022465,2]
[370135203,1751896260324,-2809.41,0.00022465,2]
[370135204,1751896260334,-151.00830318,0.00022465,2]
[370135205,1751896260344,-1241.79,0.00022465,2]
[370135206,1751896260354,-460.0,0.00022465,2]
[370135207,1751896260363,-589.1,0.00022465,2]
[370135208,1751896260374,-482.35859908,0.00022465,2]
[370135209,1751896260384,-460.0,0.00022465,2]
[370135210,1751896260394,-460.0,0.00022465,2]
[370135211,1751896260408,-923.12,0.00022465,2]
[370135212,1751896260417,-460.0,0.00022465,2]
[370135213,1751896260427,-460.0,0.00022465,2]
[370135214,1751896260437,-152.10626,0.00022465,7]
[370135215,1751896260448,-152.10626,0.00022465,7]
[370135216,1751896260457,-460.0,0.00022465,2]
[370135217,1751896260467,-1046.01,0.00022465,2]
[370135218,1751896260477,-496.13,0.00022465,2]
[370135219,1751896260488,-1293.96,0.00022465,2]
[370135220,1751896260497,-460.83,0.00022465,2]
[370135221,1751896260507,-460.0,0.00022465,2]
[370135222,1751896260520,-2786.92,0.00022465,2]
[370135223,1751896260529,-460.0,0.00022465,2]
[370135224,1751896260539,-599.84,0.00022465,2]
[370135225,1751896260549,-460.0,0.00022465,2]
[370135226,1751896260558,-842.71,0.00022465,2]
[370135227,1751896260568,-460.0,0.00022465,2]
[370135228,1751896260580,-1351.67,0.00022465,2]
[370135229,1751896260590,-460.0,0.00022465,2]
[370135230,1751896260600,-907.56,0.00022465,2]
[370135231,1751896260610,-460.0,0.00022465,2]
[370135232,1751896260621,-160.168431,0.00022486,2]
[370135233,1751896260631,-500.0,0.00022491,2]
[370135234,1751896260640,-500.0,0.00022491,2]
[370135235,1751896260649,-500.0,0.00022491,2]
[370135236,1751896260660,-500.0,0.00022491,2]
[370135237,1751896260670,-500.0,0.00022491,2]
[370135238,1751896260679,-151.0,0.00022491,7]
[370135239,1751896260689,-151.0,0.00022491,7]
[370135240,1751896260699,-151.0,0.00022491,7]
[370135241,1751896260709,-195.01453,0.00022491,7]
[370135242,1751896260718,-195.01453,0.00022491,7]
[370135243,1751896260728,-286.726556,0.00022491,7]
[370135244,1751896260739,-151.0,0.00022491,7]
[370135245,1751896260748,-151.0,0.00022491,7]
[370135246,1751896260758,-151.0,0.00022491,7]
[370135247,1751896260768,-151.0,0.00022491,7]
[370135248,1751896260779,-932.0,0.00022532,2]
[370135249,1751896260788,-932.0,0.00022544,2]
[370135250,1751896260798,-160.168431,0.00022593,2]
[370135251,1751896260807,-200.66988016,0.0002265,7]
[370135252,1751896260818,-932.0,0.0002266,2]
[370135253,1751896260828,-306.0,0.00022685,2]
[370135254,1751896260837,-160.168431,0.00022701,2]
[370135255,1751896260847,-932.0,0.00022709,2]
[370135256,1751896260857,-932.0,0.00022723,2]
[370135257,1751896260867,-420.68,0.00022739,2]
[370135258,1751896260876,-460.0,0.00022739,2]
[370135259,1751896260887,-460.0,0.00022739,2]
[370135260,1751896260897,-460.0,0.00022739,2]
[370135261,1751896260907,-584.89,0.00022739,2]
[370135262,1751896260917,-1979.21,0.00022739,2]
[370135263,1751896260927,-561.22,0.00022739,2]
[370135264,1751896260937,-1335.37,0.00022739,2]
[370135265,1751896260947,-460.0,0.00022739,2]
[370135266,1751896260957,-855.97,0.00022739,2]
[370135267,1751896260967,-1743.75,0.00022739,2]
[370135268,1751896260977,-1218.63,0.00022739,2]
[370135269,1751896260986,-485.64,0.00022739,2]
[370135270,1751896260996,-417.16,0.00022739,2]
[370135271,1751896261006,-2809.41,0.00022739,2]
[370135272,1751896261016,-1241.79,0.00022739,2]
[370135273,1751896261026,-460.0,0.00022739,2]
[370135274,1751896261035,-589.1,0.00022739,2]
[370135275,1751896261045,-460.0,0.00022739,2]
[370135276,1751896261055,-460.0,0.00022739,2]
[370135277,1751896261064,-923.12,0.00022739,2]
[370135278,1751896261074,-460.0,0.00022739,2]
[370135279,1751896261084,-460.0,0.00022739,2]
[370135280,1751896261093,-152.10626,0.00022739,7]
[370135281,1751896261103,-152.10626,0.00022739,7]
[370135282,1751896261112,-460.0,0.00022739,2]
[370135283,1751896261122,-1046.01,0.00022739,2]
[370135284,1751896261131,-496.13,0.00022739,2]
[370135285,1751896261141,-1293.96,0.00022739,2]
[370135286,1751896261150,-460.83,0.00022739,2]
[370135287,1751896261160,-376.28,0.00022739,2]
[370135288,1751896261169,-2786.92,0.00022739,2]
[370135289,1751896261178,-460.0,0.00022739,2]
[370135290,1751896261187,-599.84,0.00022739,2]
[370135291,1751896261197,-460.0,0.00022739,2]
[370135292,1751896261206,-842.71,0.00022739,2]
[370135293,1751896261216,-460.0,0.00022739,2]
[370135294,1751896261225,-1351.67,0.00022739,2]
[370135295,1751896261234,-460.0,0.00022739,2]
[370135296,1751896261244,-907.56,0.00022739,2]
[370135297,1751896261253,-460.0,0.00022739,2]
[370135298,1751896261262,-628.75672465,0.00022741,2]
[370135299,1751896261272,-1500.0,0.00022741,2]
[370135300,1751896261281,-1800.0,0.00022741,2]
[370135301,1751896261291,-167.0,0.00022765,2]
[370135302,1751896261301,-160.168431,0.00022808,2]
[370135303,1751896261311,-474.64884289,0.00022832,2]
[370135304,1751896261322,-1500.0,0.00022843,2]
[370135305,1751896261331,-188.0,0.00022871,2]
[370135306,1751896261341,-152.0207,0.00022889,2]
[370135307,1751896261350,-14685.49478443,0.000229,7]
[370135308,1751896261360,-151.0,0.000229,7]
[370135309,1751896261370,-151.0,0.000229,7]
[370135310,1751896261379,-185.98435,0.000229,7]
[370135311,1751896261388,-185.98435,0.000229,7]
[370135312,1751896261401,-491.839318,0.000229,2]
[370135313,1751896261412,-491.839318,0.000229,2]
[370135314,1751896261422,-12584.46609586,0.000229,7]
[370135315,1751896261431,-281.57521,0.000229,7]
[370135316,1751896261444,-213.052617,0.000229,7]
[370135317,1751896261454,-213.052617,0.000229,7]
[370135318,1751896261464,-209.251044,0.000229,7]
[370135319,1751896261474,-209.251044,0.000229,7]
[370135320,1751896261485,-151.0,0.000229,7]
[370135321,1751896261495,-160.0,0.000229,7]
[370135322,1751896261505,-214.06929976,0.000229,7]
[370135323,1751896261516,-641.0,0.000229,2]
[370135324,1751896261526,-848.27993403,0.000229,7]
[370135325,1751896261535,-200.66988016,0.000229,8]
[370135326,1751896261545,-215.0738,0.00022907,2]
[370135327,1751896261554,-1822.74,0.0002291,7]
[370135328,1751896261564,-151.0,0.00022915,7]
[370135329,1751896261574,-151.0,0.00022915,3]
[370135330,1751896261584,-162.463822,0.00022915,3]